{"text_format":"1","workbook":"xlsx","n_sheets":2,"sheets":["Gegevens","Voorbeeld"],"not_rendered":{"charts":0,"images":0,"macros":1,"external_links":2,"defined_names":1,"comments":0,"pivot_tables":0},"unopened":[],"bounds":{"document_bytes":16777216,"sheet_cells":100000,"rows_first":2000,"rows_last":500,"rows_between":2000,"halvings":0,"cell_chars":16384,"cell_head_chars":4096},"cells_cut":0,"cells_raw":0,"read":"whole","date_system":"1900"}

{"sheet":"Gegevens","index":0,"n_rows":109,"n_cols":25,"rows_kept":109,"cut":false,"hidden":false,"merged":[]}
["Code","BB/OB/BV","Gebouw","Lokaal","Onderdeel","Materiaal","Benaming afvalstof","Categorie","Eural-code","Aantal","Lengte","Breedte","Hoogte/dikte","Lm","m²","m³","ton/lm","ton/stuk","ton/m²","ton/m³","Massa","Opmerkingen","Staalnummer","Recuperen/hergebruik","3-delige code asbest"]
["Kurk vol",null,null,null,"kurk","kurk","Schors- en kurkafval","Andere niet-gevaarlijke materialen","03 01 01",null,null,null,null,null,null,null,null,null,null,0.2,{"$f":"J2*K2*L2*M2*T2","v":0}]
["Kurk opp",null,null,null,"kurk","kurk","Schors- en kurkafval","Andere niet-gevaarlijke materialen","03 01 01",null,null,null,null,null,null,null,null,null,6.0000000000000001E-3,null,{"$f":"S3*O3*J4","v":0}]
["Kurk massa",null,null,null,null,null,"Schors- en kurkafval",null,"03 01 01",null,null,null,null,null,null,null,null,null,null,null,{"$f":"R4*J4","v":0}]
["AEEA: PCB-houdende transformator ",null,null,null,null,null,"AEEA: PCB-houdende transformator ","Gevaarlijke afvalstoffen - Exclusief asbest en radioactief afval","16 02 09*",null,null,null,null,null,null,null,null,null,null,null,{"$f":"R5*J5","v":0}]
["AEEA: overige apparatuur die PCB's bevatten",null,null,null,null,null,"AEEA: overige apparatuur die PCB's bevatten","Gevaarlijke afvalstoffen - Exclusief asbest en radioactief afval","16 02 10*",null,null,null,null,null,null,null,null,null,null,null,0]
["AEEA: apparatuur die CFK's, HCFK's of HFK's bevatten",null,null,null,null,null,"AEEA: apparatuur die CFK's, HCFK's of HFK's bevatten","Gevaarlijke afvalstoffen - Exclusief asbest en radioactief afval","16 02 11*",null,null,null,null,null,null,null,null,null,null,null,0]
["AEEA: apparatuur die asbest bevat",null,null,null,null,null,"AEEA: apparatuur die asbest bevat","Asbesthoudende afvalstoffen","16 02 12*",null,null,null,null,null,null,null,null,null,null,null,0]
["AEEA: ioniserende rookmelder",null,null,null,null,null,"AEEA: ioniserende rookmelder","Radioactieve afvalstoffen","16 02 13*",null,null,null,null,null,null,null,null,null,null,null,0]
["AEEA: overige fluorescentie- en gasontladingslampen",null,null,null,null,null,"AEEA: overige fluorescentie- en gasontladingslampen","Gevaarlijke afvalstoffen - Exclusief asbest en radioactief afval","16 02 13*",null,null,null,null,null,null,null,null,null,null,null,0]
["Radioactieve bliksemafleider (RABA)",null,null,null,null,null,"Radioactieve bliksemafleider (RABA)","Radioactieve afvalstoffen","16 02 13*",null,null,null,null,null,null,null,null,null,null,null,0]
["armatuur TL 1kg",null,null,null,"lichtarmatuur 1-TL-lamp","elektrische apparatuur","AEEA:  apparatuur die andere gevaarlijke onderdelen bevat","Gevaarlijke afvalstoffen - Exclusief asbest en radioactief afval","16 02 13* ",null,null,null,null,null,null,null,null,1E-3,null,null,0]
["armatuur TL 2kg",null,null,null,"lichtarmatuur 2-TL-lamp","elektrische apparatuur","AEEA:  apparatuur die andere gevaarlijke onderdelen bevat","Gevaarlijke afvalstoffen - Exclusief asbest en radioactief afval","16 02 13* ",null,null,null,null,null,null,null,null,2E-3,null,null,0]
["AEEA gevaarlijke stoffen, gewicht per stuk",null,null,null,null,null,"AEEA:  apparatuur die andere gevaarlijke onderdelen bevat","Gevaarlijke afvalstoffen - Exclusief asbest en radioactief afval","16 02 13* ",null,null,null,null,null,null,null,null,null,null,null,0]
["armatuur gloeilamp (1kg)",null,null,null,"gloeilamp armatuur","elektrische apparatuur","AEEA: apparatuur vrij van gevaarlijke afvalstoffen ","Andere niet-gevaarlijke materialen","16 02 14",null,null,null,null,null,null,null,null,1E-3,null,null,0]
["armatuur halogeen (1kg)",null,null,null,"halogeen armatuur","elektrische apparatuur","AEEA: apparatuur vrij van gevaarlijke afvalstoffen ","Andere niet-gevaarlijke materialen","16 02 14",null,null,null,null,null,null,null,null,1E-3,null,null,0]
["bel (0,5kg)",null,null,null,"bel","elektrische apparatuur","AEEA: apparatuur vrij van gevaarlijke afvalstoffen ","Andere niet-gevaarlijke materialen","16 02 14",null,null,null,null,null,null,null,null,5.0000000000000001E-4,null,null,0]
["camera",null,null,null,"camera","elektrische apparatuur","AEEA: apparatuur vrij van gevaarlijke afvalstoffen ","Andere niet-gevaarlijke materialen","16 02 14",null,null,null,null,null,null,null,null,1E-3,null,null,0]
["dectector",null,null,null,"detector","elektrische apparatuur","AEEA: apparatuur vrij van gevaarlijke afvalstoffen ","Andere niet-gevaarlijke materialen","16 02 14",null,null,null,null,null,null,null,null,1E-3,null,null,0]
["drukknop",null,null,null,"drukknop","elektrische apparatuur","AEEA: apparatuur vrij van gevaarlijke afvalstoffen ","Andere niet-gevaarlijke materialen","16 02 14",null,null,null,null,null,null,null,null,1E-3,null,null,0]
["elektrische kast klein: schakelkast (10kg)",null,null,null,"elektrische kast klein","elektrische apparatuur","AEEA: apparatuur vrij van gevaarlijke afvalstoffen ","Andere niet-gevaarlijke materialen","16 02 14",null,null,null,null,null,null,null,null,0.01,null,null,0]
["elektrische hoogspanningscabine (500kg)",null,null,null,"hoogspanningscabine","elektrische apparatuur","AEEA: apparatuur vrij van gevaarlijke afvalstoffen ","Andere niet-gevaarlijke materialen","16 02 14",null,null,null,null,null,null,null,null,0.5,null,null,0]
["elektrische schrikdraadapparaat (3kg)",null,null,null,"schrikdraadapparaat","elektrische apparatuur","AEEA: apparatuur vrij van gevaarlijke afvalstoffen ","Andere niet-gevaarlijke materialen","16 02 14",null,null,null,null,null,null,null,null,3.0000000000000001E-3,null,null,0]
["elektrische waterboiler (35kg)",null,null,null,"elektrische waterboiler","elektrische apparatuur","AEEA: apparatuur vrij van gevaarlijke afvalstoffen ","Andere niet-gevaarlijke materialen","16 02 14",null,null,null,null,null,null,null,null,3.5000000000000003E-2,null,null,0]
["elektrische kast midden: schakelkast (25kg)",null,null,null,"elektrische kast midden","elektrische apparatuur","AEEA: apparatuur vrij van gevaarlijke afvalstoffen ","Andere niet-gevaarlijke materialen","16 02 14",null,null,null,null,null,null,null,null,2.5000000000000001E-2,null,null,0]
["elektrische kast groot: schakelkast (50kg)",null,null,null,"elektrische kast groot","elektrische apparatuur","AEEA: apparatuur vrij van gevaarlijke afvalstoffen ","Andere niet-gevaarlijke materialen","16 02 14",null,null,null,null,null,null,null,null,0.05,null,null,0]
["verwarmingstoestel elektrisch (10kg)",null,null,null,"verwarmingstoestel","elektrische apparatuur","AEEA: apparatuur vrij van gevaarlijke afvalstoffen ","Andere niet-gevaarlijke materialen","16 02 14",null,null,null,null,null,null,null,null,1E-3,null,null,0]
["klavier ",null,null,null,"klavier voor poort","elektrische apparatuur","AEEA: apparatuur vrij van gevaarlijke afvalstoffen ","Andere niet-gevaarlijke materialen","16 02 14",null,null,null,null,null,null,null,null,5.0000000000000001E-4,null,null,0]
["drukknopschakelaar",null,null,null,"drukknopschakelaar","elektrische apparatuur","AEEA: apparatuur vrij van gevaarlijke afvalstoffen ","Andere niet-gevaarlijke materialen","16 02 14",null,null,null,null,null,null,null,null,1E-4,null,null,0]
["temperatuurvoeler",null,null,null,"temperatuurvoeler","elektrische apparatuur","AEEA: apparatuur vrij van gevaarlijke afvalstoffen ","Andere niet-gevaarlijke materialen","16 02 14",null,null,null,null,null,null,null,null,1E-4,null,null,0]
["klimaatregelingskast",null,null,null,"klimaatregelingskast","elektrische apparatuur","AEEA: apparatuur vrij van gevaarlijke afvalstoffen ","Andere niet-gevaarlijke materialen","16 02 14",null,null,null,null,null,null,null,null,5.0000000000000001E-3,null,null,0]
["lichtschakelaar",null,null,null,"lichtschakelaar","elektrische apparatuur","AEEA: apparatuur vrij van gevaarlijke afvalstoffen ","Andere niet-gevaarlijke materialen","16 02 14",null,null,null,null,null,null,null,null,1E-4,null,null,0]
["stopcontact (0,1kg)",null,null,null,"stopcontact 1 stuk","elektrische apparatuur","AEEA: apparatuur vrij van gevaarlijke afvalstoffen ","Andere niet-gevaarlijke materialen","16 02 14",null,null,null,null,null,null,null,null,1E-4,null,null,0]
["stopcontact (0,2kg)",null,null,null,"stopcontact 2 stuk","elektrische apparatuur","AEEA: apparatuur vrij van gevaarlijke afvalstoffen ","Andere niet-gevaarlijke materialen","16 02 14",null,null,null,null,null,null,null,null,2.0000000000000001E-4,null,null,0]
["stopcontact (0,3kg)",null,null,null,"stopcontact 3stuk","elektrische apparatuur","AEEA: apparatuur vrij van gevaarlijke afvalstoffen ","Andere niet-gevaarlijke materialen","16 02 14",null,null,null,null,null,null,null,null,2.9999999999999997E-4,null,null,0]
["stopcontact (0,4kg)",null,null,null,"stopcontact 4stuk","elektrische apparatuur","AEEA: apparatuur vrij van gevaarlijke afvalstoffen ","Andere niet-gevaarlijke materialen","16 02 14",null,null,null,null,null,null,null,null,4.0000000000000002E-4,null,null,0]
["noodstop",null,null,null,"noodstop","elektrische apparatuur","AEEA: apparatuur vrij van gevaarlijke afvalstoffen ","Andere niet-gevaarlijke materialen","16 02 14",null,null,null,null,null,null,null,null,1E-4,null,null,0]
["stopcontact drijfkracht",null,null,null,"stopcontact drijfkracht","elektrische apparatuur","AEEA: apparatuur vrij van gevaarlijke afvalstoffen ","Andere niet-gevaarlijke materialen","16 02 14",null,null,null,null,null,null,null,null,1E-4,null,null,0]
["motor voor aandrijf voeders",null,null,null,"motor voor aandrijf voeders","elektrische apparatuur","AEEA: apparatuur vrij van gevaarlijke afvalstoffen ","Andere niet-gevaarlijke materialen","16 02 14",null,null,null,null,null,null,null,null,3.0000000000000001E-3,null,null,0]
["ventilatiemotor",null,null,null,"ventilatiemotor","elektrische apparatuur","AEEA: apparatuur vrij van gevaarlijke afvalstoffen ","Andere niet-gevaarlijke materialen","16 02 14",null,null,null,null,null,null,null,null,3.0000000000000001E-3,null,null,0]
["pomp",null,null,null,"pomp","elektrische apparatuur","AEEA: apparatuur vrij van gevaarlijke afvalstoffen ","Andere niet-gevaarlijke materialen","16 02 14",null,null,null,null,null,null,null,null,3.0000000000000001E-3,null,null,0]
["telefoonkast",null,null,null,"telefoonkast","elektrische apparatuur","AEEA: apparatuur vrij van gevaarlijke afvalstoffen ","Andere niet-gevaarlijke materialen","16 02 14",null,null,null,null,null,null,null,null,3.0000000000000001E-3,null,null,0]
["telefoonstopcontact",null,null,null,"telefoonstopcontact","elektrische apparatuur","AEEA: apparatuur vrij van gevaarlijke afvalstoffen ","Andere niet-gevaarlijke materialen","16 02 14",null,null,null,null,null,null,null,null,1E-4,null,null,0]
["brandblusser 3 kg",null,null,null,"brandblusser 3 kg","brandblusser 3 kg","Gassen in drukhouders die gevaarlijke afvalstoffen bevatten","Gevaarlijke afvalstoffen - Exclusief asbest en radioactief afval","16 05 04*",null,null,null,null,null,null,null,null,3.0000000000000001E-3,null,null,0]
["brandblusser 6 kg",null,null,null,"brandblusser 6 kg","brandblusser 6 kg","Gassen in drukhouders die gevaarlijke afvalstoffen bevatten","Gevaarlijke afvalstoffen - Exclusief asbest en radioactief afval","16 05 04*",null,null,null,null,null,null,null,null,6.0000000000000001E-3,null,null,0]
["brandblusser 9 kg",null,null,null,"brandblusser 9 kg","brandblusser 9 kg","Gassen in drukhouders die gevaarlijke afvalstoffen bevatten","Gevaarlijke afvalstoffen - Exclusief asbest en radioactief afval","16 05 04*",null,null,null,null,null,null,null,null,8.9999999999999993E-3,null,null,0]
["Drukhouders die gevaarlijke stoffen bevatten per kg",null,null,null,null,null,"Gassen in drukhouders die gevaarlijke afvalstoffen bevatten","Gevaarlijke afvalstoffen - Exclusief asbest en radioactief afval","16 05 04*",null,null,null,null,null,null,null,null,null,null,null,{"$f":"R47*J47","v":0}]
["Loodbatterij (massa)",null,null,null,null,null,"Loodbatterij","Gevaarlijke afvalstoffen - Exclusief asbest en radioactief afval","16 06 01*",null,null,null,null,null,null,null,null,null,null,null,{"$f":"R48*J48","v":0}]
["funderingsbeton paalput/sleuf 80cm diep","OB",null,null,"funderingsbeton paalput","beton","Beton","Steenachtige materialen","17 01 01",null,null,null,0.8,null,null,{"$f":"[1]!Tabel14[[#This Row],[Lengte]]*[1]!Tabel14[[#This Row],[Breedte]]*[1]!Tabel14[[#This Row],[Hoogte/dikte]]","v":{"$error":"#REF!"}},null,null,null,2.5,{"$f":"[1]!Tabel14[[#This Row],[Aantal]]*[1]!Tabel14[[#This Row],[m³]]*[1]!Tabel14[[#This Row],[ton/m³]]","v":{"$error":"#REF!"}}]
["funderingsbeton vloerplaat (20cm)  opp","OB",null,null,"funderingsbeton vloerplaat","beton","Beton","Steenachtige materialen","17 01 01",null,null,null,0.2,null,null,{"$f":"[1]!Tabel14[[#This Row],[m²]]*[1]!Tabel14[[#This Row],[Hoogte/dikte]]","v":{"$error":"#REF!"}},null,null,null,2.5,{"$f":"[1]!Tabel14[[#This Row],[Aantal]]*[1]!Tabel14[[#This Row],[m³]]*[1]!Tabel14[[#This Row],[ton/m³]]","v":{"$error":"#REF!"}}]
["funderingsbeton vloerplaat (20cm) berekenen","OB",null,null,"funderingsbeton vloerplaat","beton","Beton","Steenachtige materialen","17 01 01",null,null,null,0.2,null,null,{"$f":"O51*M51*J51","v":0},null,null,null,2.5,{"$f":"[1]!Tabel14[[#This Row],[Aantal]]*[1]!Tabel14[[#This Row],[m³]]*[1]!Tabel14[[#This Row],[ton/m³]]","v":{"$error":"#REF!"}}]
["betonblok vol 14 opp","BB",null,null,"volle betonblok","beton","Beton","Steenachtige materialen","17 01 01",null,null,null,0.14000000000000001,null,null,{"$f":"M52*O52*J52","v":0},null,null,null,2.5,{"$f":"[1]!Tabel14[[#This Row],[Aantal]]*[1]!Tabel14[[#This Row],[m³]]*[1]!Tabel14[[#This Row],[ton/m³]]","v":{"$error":"#REF!"}}]
["betonblok vol 14 berekenen","BB",null,null,"volle betonblok","beton","Beton","Steenachtige materialen","17 01 01",null,null,null,0.14000000000000001,null,null,{"$f":"J53*K53*L53*M53","v":0},null,null,null,2.5,{"$f":"[1]!Tabel14[[#This Row],[Aantal]]*[1]!Tabel14[[#This Row],[m³]]*[1]!Tabel14[[#This Row],[ton/m³]]","v":{"$error":"#REF!"}}]
["betonblok vol 19 opp","BB",null,null,"volle betonblok","beton","Beton","Steenachtige materialen","17 01 01",null,null,null,0.19,null,null,{"$f":"M54*O54*J54","v":0},null,null,null,2.5,{"$f":"[1]!Tabel14[[#This Row],[Aantal]]*[1]!Tabel14[[#This Row],[m³]]*[1]!Tabel14[[#This Row],[ton/m³]]","v":{"$error":"#REF!"}}]
["betonblok vol 19 berekenen","BB",null,null,"volle betonblok","beton","Beton","Steenachtige materialen","17 01 01",null,null,null,0.19,null,null,{"$f":"J55*K55*L55*M55","v":0},null,null,null,2.5,{"$f":"[1]!Tabel14[[#This Row],[Aantal]]*[1]!Tabel14[[#This Row],[m³]]*[1]!Tabel14[[#This Row],[ton/m³]]","v":{"$error":"#REF!"}}]
["spant beton (l.m.)","BB",null,null,"spanten beton","beton","Beton","Steenachtige materialen","17 01 01",null,null,null,null,null,null,null,0.25,null,null,null,{"$f":"Q56*J56*N56","v":0}]
["Voederbak beton klein (10kg)",null,null,null,"voederbak beton klein","beton","Beton","Steenachtige materialen","17 01 01",null,null,null,null,null,null,null,null,0.01,null,null,{"$f":"R57*J57","v":0}]
["Voederbak beton midden (20kg)",null,null,null,"voederbak beton midden","beton","Beton","Steenachtige materialen","17 01 01",null,null,null,null,null,null,null,null,0.02,null,null,{"$f":"R58*J58","v":0}]
["Voederbak beton groot (40kg)",null,null,null,"voederbak beton groot","beton","Beton","Steenachtige materialen","17 01 01",null,null,null,null,null,null,null,null,0.04,null,null,{"$f":"R59*J59","v":0}]
["gording beton (l.m.)","BB",null,null,"gordingen beton","beton","Beton","Steenachtige materialen","17 01 01",null,null,null,null,null,null,null,4.4999999999999998E-2,null,null,null,{"$f":"Q60*J60*N60","v":0}]
["gewelven+opstort opp","BB",null,null,"gewelven+opstort","beton","Beton","Steenachtige materialen","17 01 01",null,null,null,0.2,null,null,{"$f":"M61*O61*J61","v":0},null,null,null,2.5,{"$f":"P61*T61","v":0}]
["betonblok hol14 opp","BB",null,null,"holle betonblok","beton","Beton","Steenachtige materialen","17 01 01",null,null,null,0.14000000000000001,null,null,{"$f":"M62*O62*J62","v":0},null,null,null,2.0499999999999998,0]
["betonblok hol 14 berekenen","BB",null,null,"holle betonblok","beton","Beton","Steenachtige materialen","17 01 01",null,null,null,0.14000000000000001,null,{"$f":"L63*K63","v":0},{"$f":"O63*M63*J63","v":0},null,null,null,2.0499999999999998,0]
["panelen beton 14 cm","BB",null,null,"beton panelen","beton","Beton","Steenachtige materialen","17 01 01",null,null,null,0.14000000000000001,null,null,{"$f":"M64*O64*J64","v":0},null,null,null,2.4500000000000002,0]
["panelen beton 14 cm berekenen","BB",null,null,"beton panelen","beton","Beton","Steenachtige materialen","17 01 01",null,null,null,0.14000000000000001,null,{"$f":"L65*K65","v":0},{"$f":"O65*M65*J65","v":0},null,null,null,2.4500000000000002,0]
["panelen silex 14 cm","BB",null,null,"beton silex","beton","Beton","Steenachtige materialen","17 01 01",null,null,null,0.14000000000000001,null,null,{"$f":"M66*O66*J66","v":0},null,null,null,2.4500000000000002,0]
["panelen silex 14 cm berekenen","BB",null,null,"beton silex","beton","Beton","Steenachtige materialen","17 01 01",null,null,null,0.14000000000000001,null,{"$f":"L67*K67","v":0},{"$f":"O67*M67*J67","v":0},null,null,null,2.4500000000000002,0]
["beton rooster opp","OB",null,null,"betonnen roosters","beton","Beton","Steenachtige materialen","17 01 01",null,null,null,0.05,null,0,{"$f":"M68*O68*J68","v":0},null,null,0.15,null,{"$f":"S68*P68","v":0}]
["betonblok rooster berekenen","OB",null,null,"betonnen roosters","beton","Beton","Steenachtige materialen","17 01 01",null,null,null,0.05,null,{"$f":"L69*K69","v":0},{"$f":"O69*M69*J69","v":0},null,null,0.15,null,{"$f":"S69*P69","v":0}]
["betonblok hol 19 opp","BB",null,null,"holle betonblok","beton","Beton","Steenachtige materialen","17 01 01",null,null,null,0.19,null,null,{"$f":"M70*O70*J70","v":0},null,null,null,2.0499999999999998,{"$f":"P70*T70","v":0}]
["betonblok hol 19 berekenen","BB",null,null,"holle betonblok","beton","Beton","Steenachtige materialen","17 01 01",null,null,null,0.19,null,{"$f":"L71*K71","v":0},{"$f":"O71*M71*J71","v":0},null,null,null,2.0499999999999998,{"$f":"P71*T71","v":0}]
["lenteel berekenen ","BB",null,null,"lenteel","beton","Beton","Steenachtige materialen","17 01 01",null,null,null,null,null,{"$f":"L72*K72","v":0},{"$f":"O72*M72*J72","v":0},null,null,null,2.0499999999999998,{"$f":"P72*T72","v":0}]
["vensterbanken beton (3cm) berekenen ",null,null,null,"betonnen vensterbank","beton","Beton","Steenachtige materialen","17 01 01",null,null,null,0.03,null,{"$f":"L73*K73","v":0},{"$f":"O73*M73*J73","v":0},null,null,null,2.4,{"$f":"T73*P73","v":0}]
["Stenen vloer berekenen (betonklinkers)",null,null,null,"stenen vloer","stenen vloer","Beton","Steenachtige materialen","17 01 01",null,null,null,null,null,null,null,null,null,2.5000000000000001E-2,null,{"$f":"S74*O74*J74","v":0}]
["Stenen Vloer opp (betonklinkers)",null,null,null,"stenen vloer","stenen vloer","Beton","Steenachtige materialen","17 01 01",null,null,null,null,null,null,null,null,null,2.5000000000000001E-2,null,0]
["Chape licht berekenen",null,null,null,"chape (6-12cm)","chape (6-12cm)","Beton","Steenachtige materialen","17 01 01",null,null,null,null,null,null,null,null,null,0.18,null,0]
["Chape licht opp",null,null,null,"chape (6-12cm)","chape (6-12cm)","Beton","Steenachtige materialen","17 01 01",null,null,null,null,null,null,null,null,null,0.18,null,0]
["Chape zwaar berekenen",null,null,null,"chape (13-20cm)","chape (13-20cm)","Beton","Steenachtige materialen","17 01 01",null,null,null,null,null,null,null,null,null,0.25,null,0]
["Chape zwaar opp",null,null,null,"chape (13-20cm)","chape (13-20cm)","Beton","Steenachtige materialen","17 01 01",null,null,null,null,null,null,null,null,null,0.25,null,0]
["beton ramen berekenen ",null,null,null,"betonnen ramen","betonnen ramen","Beton","Steenachtige materialen","17 01 01",null,null,null,null,null,null,null,null,null,0.02,null,{"$f":"J80*K80*L80*S80","v":0}]
["vezelcement nok (lm)",null,null,null,"vezelcement nok","vezelcement","dakbedekking","Steenachtige materialen","17 01 01",null,null,null,null,null,null,null,2.5000000000000001E-3,null,null,null,{"$f":"Q81*J81*N81","v":0}]
["vezelcement golfplaten (0,6cm) berekenen",null,null,null,"vezelcement golfplaten","vezelcement","dakbedekking","Steenachtige materialen","17 01 01",null,null,null,6.0000000000000001E-3,null,null,{"$f":"[1]!Tabel14[[#This Row],[m²]]*[1]!Tabel14[[#This Row],[Hoogte/dikte]]","v":{"$error":"#REF!"}},null,null,null,2.5,{"$f":"[1]!Tabel14[[#This Row],[m³]]*[1]!Tabel14[[#This Row],[ton/m³]]*[1]!Tabel14[[#This Row],[Aantal]]","v":{"$error":"#REF!"}}]
["vezelcement golfplaten (0,6cm) opp",null,null,null,"vezelcement golfplaten","vezelcement","dakbedekking","Steenachtige materialen","17 01 01",null,null,null,6.0000000000000001E-3,null,null,{"$f":"O83*M83*J83","v":0},null,null,null,2.5,{"$f":"[1]!Tabel14[[#This Row],[m³]]*[1]!Tabel14[[#This Row],[ton/m³]]*[1]!Tabel14[[#This Row],[Aantal]]","v":{"$error":"#REF!"}}]
["buitensteen/parament/baksteen (9cm)berekenen","BB",null,null,"buitensteen/parament","baksteenmetselwerk","Baksteen en dakpannen","Steenachtige materialen","17 01 02",null,null,null,0.09,null,{"$f":"L84*K84","v":0},{"$f":"O84*M84*J84","v":0},null,null,null,2,{"$f":"P84*T84","v":0}]
["buitensteen/parament/baksteen (9cm) opp","BB",null,null,"buitensteen/parament","baksteenmetselwerk","Baksteen en dakpannen","Steenachtige materialen","17 01 02",null,null,null,0.09,null,null,{"$f":"M85*O85*J85","v":0},null,null,null,2,{"$f":"P85*T85","v":0}]
["potten en balken berekenen (12cm)","BB",null,null,"potten en balken","baksteenmetselwerk","Baksteen en dakpannen","Steenachtige materialen","17 01 02",null,null,null,0.12,null,{"$f":"L86*K86","v":0},{"$f":"M86*O86","v":0},null,null,null,2,{"$f":"[1]!Tabel14[[#This Row],[ton/m³]]*[1]!Tabel14[[#This Row],[m³]]*[1]!Tabel14[[#This Row],[Aantal]]","v":{"$error":"#REF!"}}]
["potten en balken opp (12cm)","BB",null,null,"potten en balken","baksteenmetselwerk","Baksteen en dakpannen","Steenachtige materialen","17 01 02",null,null,null,0.12,null,null,{"$f":"M87*O87","v":0},null,null,null,2,{"$f":"[1]!Tabel14[[#This Row],[ton/m³]]*[1]!Tabel14[[#This Row],[m³]]*[1]!Tabel14[[#This Row],[Aantal]]","v":{"$error":"#REF!"}}]
["snelbouw14 berekenen","BB",null,null,"snelbouwsteen","baksteenmetselwerk","Baksteen en dakpannen","Steenachtige materialen","17 01 02",null,null,null,0.14000000000000001,null,{"$f":"L88*K88","v":0},{"$f":"O88*M88*J88","v":0},null,null,null,1.8,{"$f":"P88*T88","v":0}]
["snelbouw14 opp","BB",null,null,"snelbouwsteen","baksteenmetselwerk","Baksteen en dakpannen","Steenachtige materialen","17 01 02",null,null,null,0.14000000000000001,null,null,{"$f":"M89*O89*J89","v":0},null,null,null,1.8,{"$f":"P89*T89","v":0}]
["snelbouw19 berekenen","BB",null,null,"snelbouwsteen","baksteenmetselwerk","Baksteen en dakpannen","Steenachtige materialen","17 01 02",null,null,null,0.19,null,{"$f":"L90*K90","v":0},{"$f":"O90*M90*J90","v":0},null,null,null,2.0499999999999998,{"$f":"P90*T90","v":0}]
["snelbouw19 opp","BB",null,null,"snelbouwsteen","baksteenmetselwerk","Baksteen en dakpannen","Steenachtige materialen","17 01 02",null,null,null,0.19,null,null,{"$f":"M91*O91*J91","v":0},null,null,null,2.0499999999999998,{"$f":"P91*T91","v":0}]
["dakpannen berekenen","BB",null,null,"dakpannnen","dakpannen","Baksteen en dakpannen","Steenachtige materialen","17 01 02",null,null,null,null,null,{"$f":"L92*K92","v":0},null,null,null,0.05,null,{"$f":"S92*O92*J92","v":0}]
["dakpannen opp","BB",null,null,"dakpannnen","dakpannen","Baksteen en dakpannen","Steenachtige materialen","17 01 02",null,null,null,null,null,null,null,null,null,0.05,null,{"$f":"S93*O93*J93","v":0}]
["Dakpannen blanco",null,null,null,null,null,"Baksteen en dakpannen","Steenachtige materialen","17 01 02"]
["hardsteen/natuursteen opp (2cm)","BB",null,null,"hardsteen","hardsteen","Natuursteen","Steenachtige materialen","17 01 02",null,null,null,0.02,null,null,{"$f":"O95*M95*J95","v":0},null,null,null,2.75,{"$f":"P95*T95","v":0}]
["hardsteen/natuursteen (2cm) berekenen","BB",null,null,"hardsteen","hardsteen","Natuursteen","Steenachtige materialen","17 01 02",null,null,null,0.02,null,{"$f":"L96*K96","v":0},{"$f":"O96*M96*J96","v":0},null,null,null,2.75,{"$f":"P96*T96","v":0}]
["hardsteen/natuursteen (2cm)keuken berekenen ","BB",null,null,"hardsteen keuken","hardsteen","Natuursteen","Steenachtige materialen","17 01 02",null,null,null,0.02,null,{"$f":"L97*K97","v":0},{"$f":"O97*M97*J97","v":0},null,null,null,2.75,{"$f":"P97*T97","v":0}]
["hardsteen/natuursteen massa/stuk","BB",null,null,"hardsteen tussenschot koebox","hardsteen","Natuursteen","Steenachtige materialen","17 01 02",null,null,null,null,null,null,null,null,0.15,null,null,{"$f":"R98*J98","v":0}]
["Tegels wand (fiaences) (0,5 cm) berekenen",null,null,null,"wandtegels","keramische producten","Keramische tegels","Andere niet-gevaarlijke materialen","17 01 03",null,null,null,5.0000000000000001E-3,null,null,{"$f":"O99*M99*J99","v":0},null,null,null,2,{"$f":"T99*P99","v":0}]
["Tegels opp wand(fiaences) (0,5cm)",null,null,null,"wandtegels","keramische producten","Keramische tegels","Andere niet-gevaarlijke materialen","17 01 03",null,null,null,5.0000000000000001E-3,null,0,{"$f":"O100*M100*J100","v":0},null,null,null,2,{"$f":"T100*P100","v":0}]
["Tegels in m² wand(fiaences) (kg/m²)",null,null,null,"wandtegels","keramische producten","Keramische tegels","Andere niet-gevaarlijke materialen","17 01 03",null,null,null,null,null,0,null,null,null,2.5000000000000001E-2,null,{"$f":"S101*O101","v":0}]
["Tegels berekenen (2cm)",null,null,null,"tegels","keramische producten","Keramische tegels","Andere niet-gevaarlijke materialen","17 01 03",null,null,null,0.02,null,{"$f":"L102*K102","v":0},{"$f":"O102*M102*J102","v":0},null,null,null,2,{"$f":"T102*P102","v":0}]
["Tegels opp(2cm)",null,null,null,"tegels","keramische producten","Keramische tegels","Andere niet-gevaarlijke materialen","17 01 03",null,null,null,0.02,null,null,{"$f":"O103*M103*J103","v":0},null,null,null,2,{"$f":"P103*T103","v":0}]
["Tegels in m² (kg/m²) (2cm)",null,null,null,"tegels","keramische producten","Keramische tegels","Andere niet-gevaarlijke materialen","17 01 03",null,null,null,null,null,null,null,null,null,2.5000000000000001E-2,null,{"$f":"[1]!Tabel14[[#This Row],[ton/m²]]*[1]!Tabel14[[#This Row],[m²]]","v":{"$error":"#REF!"}}]
["wc (30kg)",null,null,null,"wc","porcelein","Porselein","Andere niet-gevaarlijke materialen","17 01 03",null,null,null,null,null,null,null,null,0.03,null,null,{"$f":"R105*J105","v":0}]
["lavabo (15kg)",null,null,null,"lavabo","porcelein","Porselein","Andere niet-gevaarlijke materialen","17 01 03",null,null,null,null,null,null,null,null,1.4999999999999999E-2,null,null,{"$f":"R106*J106","v":0}]
["urinoir/piscine (15kg)",null,null,null,"urinoir","porcelein","Porselein","Andere niet-gevaarlijke materialen","17 01 03",null,null,null,null,null,null,null,null,1.4999999999999999E-2,null,null,{"$f":"R107*J107","v":0}]
["bad (120kg)",null,null,null,"bad","porcelein","Porselein","Andere niet-gevaarlijke materialen","17 01 03",null,null,null,null,null,null,null,null,0.12,null,null,{"$f":"R108*J108","v":0}]
["doucheblok (40kg)",null,null,null,"doucheblok","porcelein","Porselein","Andere niet-gevaarlijke materialen","17 01 03",null,null,null,null,null,null,null,null,0.04,null,null,{"$f":"R109*J109","v":0}]

{"sheet":"Voorbeeld","index":1,"n_rows":7,"n_cols":25,"rows_kept":7,"cut":false,"hidden":false,"merged":[]}
["Code","BB/OB/BV","Gebouw","Lokaal","Onderdeel","Materiaal","Benaming afvalstof","Categorie","Eural-code","Aantal","Lengte","Breedte","Hoogte/dikte","Lm","m²","m³","ton/lm","ton/stuk","ton/m²","ton/m³","Massa","Opmerkingen","Staalnummer","Recuperen/hergebruik","3-delige code asbest"]
["Kurk massa",null,"Gebouw 1 ","inkom",null,null,"Schors- en kurkafval",null,"03 01 01",1,null,null,null,null,null,null,null,null,null,null,{"$f":"R2*J2","v":0}]
["AEEA: PCB-houdende transformator ",null,"Gebouw 1 ","technische ruimte",null,null,"AEEA: PCB-houdende transformator ","Gevaarlijke afvalstoffen - Exclusief asbest en radioactief afval","16 02 09*",2,null,null,null,null,null,null,null,null,null,null,{"$f":"R3*J3","v":0}]
["funderingsbeton vloerplaat (20cm) berekenen","OB","Gebouw 1 ","inkom","funderingsbeton vloerplaat","beton","Beton","Steenachtige materialen","17 01 01",1,10,15,0.2,null,{"$f":"K4*L4*M4","v":30},{"$f":"O4*M4*J4","v":6},null,null,null,2.5,{"$f":"P4*T4*J4","v":15}]
["betonblok vol 14 opp","BB","Gebouw 1 ","inkom","volle betonblok","beton","Beton","Steenachtige materialen","17 01 01",1,null,null,0.14000000000000001,null,150,{"$f":"M5*O5","v":21.000000000000004},null,null,null,2.5,{"$f":"P5*T5*J5","v":52.500000000000007}]
["betonblok vol 14 opp","BB","gebouw 2","loods","volle betonblok","beton","Beton","Steenachtige materialen","17 01 01",1,null,null,0.14000000000000001,null,150,{"$f":"M6*O6","v":21.000000000000004},null,null,null,2.5,52.500000000000007]
["funderingsbeton vloerplaat (20cm) berekenen","OB","gebouw 2","loods","funderingsbeton vloerplaat","beton","Beton","Steenachtige materialen","17 01 01",1,20,26,0.2,null,{"$f":"K7*L7*M7","v":104},{"$f":"O7*M7*J7","v":20.8},null,null,null,2.5,52]